Cogmind - Beta 13 @@@ ROGUE MODE // 2024.04.24 @ 21:41:58 Player: Khoroshiy Result: Destroyed by Y-45 Defender with Heavy Assault Rifle Performance ------------- Evolutions (2) 1000 Regions Visited (6) 1200 Robots Destroyed (10) 50 Value Destroyed (237) 237 Prototype IDs (6) 120 Alien Tech Used (0) 0 Bonus (279) 279 TOTAL SCORE: 2886 Bonus ------- Aligned with FarCom 300 Friendly Fire -21 Cogmind --------- Core Integrity 0/550 Matter 256/300 Energy 44/100 System Corruption 0% Temperature Cool (13) Movement Flying (32) Location -8/Storage Parts ------- > --- POWER (1) -------- (None) > --- PROPULSION (4) --- Improved VTOL Module Improved VTOL Module > --- UTILITY (4) ------ Small Storage Unit > --- WEAPON (2) ------- (None) > --- INVENTORY (8) ---- PSU Rigger Light Assault Rifle Peak State ------------ > --- POWER ------------ (None) > --- PROPULSION ------- Improved Flight Unit Improved VTOL Module Improved VTOL Module Improved VTOL Module > --- UTILITY ---------- Weight Redist. System Drone Bay Drone Bay Drone Bay > --- WEAPON ----------- (None) > --- INVENTORY -------- Small Storage Unit ECM Suite PSU Rigger Light Assault Rifle [Rating: 33] Favorites ----------- Power Light Ion Engine Engine Light Ion Engine Power Core Light Nuclear Core Propulsion Flight Unit Leg Aluminum Leg Flight Unit Flight Unit Utility Small Storage Unit Device PSU Rigger Storage Small Storage Unit Weapon Assault Rifle Energy Gun Shock Rifle Ballistic Gun Assault Rifle Launcher Rocket Launcher Build | -11 -10 -10 -10 -9 -8 -8 ------- Run | Yrd Mat Min Exi Min Mat Sto Slots Evolved 4 | . . . . . 4 . Power . | . . . . . . . Propulsion 2 | . . . . . 2 . Utility 2 | . . . . . 2 . Weapon . | . . . . . . . Parts Attached 34 | 6 2 7 1 . 4 14 Power 4 | 1 . 2 . . 1 . Engine 3 | 1 . 2 . . . . Core 1 | . . . . . 1 . Reactor . | . . . . . . . Propulsion 13 | 2 2 3 . . 1 5 Treads . | . . . . . . . Leg 2 | 2 . . . . . . Wheel . | . . . . . . . Hover . | . . . . . . . Flight 11 | . 2 3 . . 1 5 Utility 11 | 1 . . 1 . 1 8 Device 8 | . . . 1 . . 7 Storage 3 | 1 . . . . 1 1 Processor . | . . . . . . . Hackware . | . . . . . . . Protection . | . . . . . . . Artifact . | . . . . . . . Weapon 6 | 2 . 2 . . 1 1 Energy Gun 1 | . . . . . 1 . Energy Cannon . | . . . . . . . Ballistic Gun 4 | 2 . 2 . . . . Ballistic Cannon . | . . . . . . . Launcher 1 | . . . . . . 1 Special Weapon . | . . . . . . . Impact Weapon . | . . . . . . . Slashing Weapon . | . . . . . . . Piercing Weapon . | . . . . . . . Special Melee Weapon . | . . . . . . . Unidentified Prototypes 4 | . . . 2 . . 2 Parts Lost 14 | . . 3 . . 7 4 Power 2 | . . . . . 2 . Propulsion 7 | . . 2 . . 3 2 Utility 1 | . . . . . . 1 Weapon 4 | . . 1 . . 2 1 Highest Loss Streak 6 | . . 3 . . 6 2 To Critical Strikes . | . . . . . . . Average Slot Usage (%) 69 | . 84 63 76 85 51 40 Engine 10 | . 14 14 14 14 4 . Leg 6 | . 21 . . . . . Flight 20 | . 6 28 28 28 23 28 Device 3 | . . . 5 14 . 8 Storage 5 | . 14 . . . 6 1 Ballistic Gun 21 | . 28 20 28 28 12 . Naked Turns 12 | . . . . . 6 6 Heaviest Build 18 | 13 13 7 8 8 12 18 Greatest Support 20 | 20 20 8 8 8 12 16 Greatest Overweight (x) 5 | 4 3 . . . . 5 Average Overweight (x) . | . . . . . . . Largest Inventory Capacity 8 | 8 8 8 5 5 8 8 Average Capacity 6 | 7 8 5 5 5 7 5 Most Carried 6 | 2 6 6 5 5 5 5 Average Carried 4 | 1 4 4 5 5 4 3 Final Capacity 8 | 8 8 5 5 5 5 8 Final Carried 6 | 2 6 5 5 5 5 2 Class Distribution -------------------- 45% | Mutant 42% | Scavenger-Mutant 11% | Sprinter Dominant Class ---------------- Mutant | -10/Materials Mutant | -10/Mines Scavenger-Mutant | -10/Exiles Scavenger-Mutant | -9/Mines Scavenger-Mutant | -8/Materials Sprinter | -8/Storage Resources | -11 -10 -10 -10 -9 -8 -8 ----------- Run | Yrd Mat Min Exi Min Mat Sto Matter Collected 625 | 234 97 98 . 20 45 131 Remotely . | . . . . . . . Salvage Created 266 | . 139 56 . . 46 25 Parts 15 | . 8 2 . . 2 3 Haulers Intercepted . | . . . . . . . Recyclers Shooed . | . . . . . . . Parts Field Recycled . | . . . . . . . Retrieved Matter . | . . . . . . . Parts Self-Destructed . | . . . . . . . Prevented . | . . . . . . . Kills | -11 -10 -10 -10 -9 -8 -8 ------- Run | Yrd Mat Min Exi Min Mat Sto Combat Hostiles Destroyed 10 | . 5 3 . . 1 1 Guns 9 | . 5 3 . . 1 . AOE 1 | . . . . . . 1 Classes Destroyed 5 | . 2 1 . . 1 1 Worker 1 | . . . . . . 1 Swarmer 5 | . 3 2 . . . . Grunt 3 | . 2 . . . . 1 Hunter 1 | . . . . . 1 . Assembled 1 | . . 1 . . . . Best Kill Streak 3 | . 3 2 . . 1 2 Combat Bots Only 3 | . 3 2 . . 1 1 Max Kills in Single Turn 1 | . 1 1 . . 1 1 Gunslinging . | . . . . . . . Exploded 1 | . . . . . . 1 Melee . | . . . . . . . Uniques/NPCs Destroyed . | . . . . . . . Combat | -11 -10 -10 -10 -9 -8 -8 -------- Run | Yrd Mat Min Exi Min Mat Sto Hostile Shots Fired 235 | . 25 24 . 12 50 124 Missed 100 | . 5 14 . 6 17 58 Damage Taken 1726 | . 206 146 . 46 367 961 Core 593 | . . 11 . 17 72 493 Absorbed by Shields . | . . . . . . . Core Remaining (%) 94 | 100 . . . 88 . . Volleys Fired 43 | . 14 12 . . 12 5 Largest 2 | . 2 1 . . 2 1 Hottest 70 | . 40 20 . . 70 33 Shots Fired 64 | . 28 12 . . 19 5 Gun 59 | . 28 12 . . 19 . Cannon . | . . . . . . . Launcher 5 | . . . . . . 5 Special . | . . . . . . . Kinetic 52 | . 28 12 . . 12 . Thermal . | . . . . . . . Explosive 5 | . . . . . . 5 Electromagnetic 7 | . . . . . 7 . Robot Hit Streak 9 | . 9 6 . . 4 1 Robot Miss Streak 3 | . 3 2 . . 2 3 Penetration Max . | . . . . . . . Secondary Targets . | . . . . . . . Shots Hit Robots 36 | . 16 8 . . 11 1 Core Hits 25 | . 7 4 . . 4 10 Critical Kills 1 | . 1 . . . . . Critical Parts Destroyed 1 | . . 1 . . . . Critical Strikes 2 | . 1 1 . . . . Destroy 2 | . 1 1 . . . . Melee Attacks . | . . . . . . . Impact . | . . . . . . . Slashing . | . . . . . . . Piercing . | . . . . . . . Sneak Attacks . | . . . . . . . Combat Hostiles . | . . . . . . . Follow-up Attacks . | . . . . . . . Damage Inflicted 990 | . 176 98 . . 126 590 Guns 400 | . 176 98 . . 126 . Cannons . | . . . . . . . Explosions 590 | . . . . . . 590 Melee . | . . . . . . . Ramming . | . . . . . . . Kinetic 348 | . 176 98 . . 74 . Thermal . | . . . . . . . Explosive 590 | . . . . . . 590 Electromagnetic 52 | . . . . . 52 . Impact . | . . . . . . . Slashing . | . . . . . . . Piercing . | . . . . . . . Highest Corruption . | . . . . . . . Average Corruption . | . . . . . . . Corruption Purged . | . . . . . . . Corruption Blocked . | . . . . . . . Overload Shots . | . . . . . . . Overflow Damage 8 | . . . . . . 8 Projectiles . | . . . . . . . Explosions 8 | . . . . . . 8 Melee . | . . . . . . . Knockbacks . | . . . . . . . Impact . | . . . . . . . Kinetic . | . . . . . . . Secondary . | . . . . . . . Self-Inflicted Damage . | . . . . . . . Shots . | . . . . . . . Rammed . | . . . . . . . Targets Rammed . | . . . . . . . Kicked . | . . . . . . . Crushed . | . . . . . . . Highest Temperature 16 | . 11 16 . . 6 14 Average Temperature 6 | . 7 9 . . 3 4 Received Heat Transfer 690 | . 90 60 . . 63 477 Siege Activations . | . . . . . . . Robots Corrupted . | . . . . . . . Combat Hostiles . | . . . . . . . Parts Fried 1 | . . . . . 1 . Impact Corruptions . | . . . . . . . Robots Melted . | . . . . . . . Combat Hostiles . | . . . . . . . Parts Melted . | . . . . . . . Heat Transferred . | . . . . . . . Parts Sabotaged . | . . . . . . . Parts Stolen . | . . . . . . . Parts Stripped . | . . . . . . . Power Chain Reactions . | . . . . . . . Alert | -11 -10 -10 -10 -9 -8 -8 ------- Run | Yrd Mat Min Exi Min Mat Sto Peak Influence 133 | . 133 110 . 15 130 120 Initial 42 | . . . . . 5 42 Average 43 | . 52 68 . . 53 41 Maximum Alert Level . | . . . . . . . Low Security (%) 100 | 100 100 100 . 100 100 100 Level 1 . | . . . . . . . Level 2 . | . . . . . . . Level 3 . | . . . . . . . Level 4 . | . . . . . . . Level 5 . | . . . . . . . High Security . | . . . . . . . Max Security . | . . . . . . . Squads Dispatched 6 | . 1 . . . 1 4 Investigation 2 | . 1 . . . . 1 Extermination . | . . . . . . . Reinforcement 2 | . . . . . 1 1 Assault 2 | . . . . . . 2 Garrison . | . . . . . . . Intercept . | . . . . . . . Searches Triggered . | . . . . . . . Construction Impeded . | . . . . . . . Haulers Reinforced . | . . . . . . . Active Scanning Responses . | . . . . . . . Cargo Convoy Interrupts . | . . . . . . . Stealth | -11 -10 -10 -10 -9 -8 -8 --------- Run | Yrd Mat Min Exi Min Mat Sto Distress Signals 3 | . . . . . 2 1 Communications Jammed . | . . . . . . . Distress Signals . | . . . . . . . Times Spotted 82 | . 8 14 . 4 18 38 Peak Tracking Total 23 | . 4 16 . 4 13 23 Tactical Retreats 5 | . . 2 . . 1 2 Traps | -11 -10 -10 -10 -9 -8 -8 ------- Run | Yrd Mat Min Exi Min Mat Sto Traps Triggered 1 | . 1 . . . . . Indirectly . | . . . . . . . Trap Hack Attempts . | . . . . . . . Triggered . | . . . . . . . Disarmed . | . . . . . . . Reprogrammed . | . . . . . . . Reused . | . . . . . . . Traps Extracted . | . . . . . . . Installed . | . . . . . . . Triggered . | . . . . . . . Machines | -11 -10 -10 -10 -9 -8 -8 ---------- Run | Yrd Mat Min Exi Min Mat Sto Machines Disabled . | . . . . . . . Max in Single Turn . | . . . . . . . Machines Repaired . | . . . . . . . Machines Dismantled . | . . . . . . . Machines Sabotaged . | . . . . . . . Overloaded Fab Kills . | . . . . . . . Hacking | -11 -10 -10 -10 -9 -8 -8 --------- Run | Yrd Mat Min Exi Min Mat Sto Machines Accessed 8 | . 4 . . . 2 2 Terminals 8 | . 4 . . . 2 2 Fabricators . | . . . . . . . Repair Stations . | . . . . . . . Recycling Units . | . . . . . . . Scanalyzers . | . . . . . . . Garrison Access . | . . . . . . . Total Hacks 21 | . 14 . . . 4 3 Successful 15 | . 11 . . . 2 2 Failed 6 | . 3 . . . 2 1 Catastrophic 1 | . . . . . 1 . Database Lockouts . | . . . . . . . Manual 3 | . . . 1 . . 2 Terminals 21 | . 14 . . . 4 3 Fabricators . | . . . . . . . Repair Stations . | . . . . . . . Recycling Units . | . . . . . . . Scanalyzers . | . . . . . . . Garrison Access . | . . . . . . . Terminal Hacks 15 | . 11 . . . 2 2 Record 5 | . 5 . . . . . Prototype ID Bank 1 | . 1 . . . . . Open Door 1 | . . . . . . 1 Emergency Access Points 1 | . 1 . . . . . Locate Traps 2 | . 2 . . . . . Hauler Manifests 1 | . 1 . . . . . Registered Components 1 | . 1 . . . . . Zone Layout 3 | . . . . . 2 1 Fabricator Hacks . | . . . . . . . Repair Station Hacks . | . . . . . . . Recycling Unit Hacks . | . . . . . . . Scanalyzer . | . . . . . . . Garrison Access Hacks . | . . . . . . . Unauthorized Hacks . | . . . . . . . Terminals . | . . . . . . . Fabricators . | . . . . . . . Repair Stations . | . . . . . . . Recycling Units . | . . . . . . . Scanalyzers . | . . . . . . . Garrison Access . | . . . . . . . Data Cores Recovered . | . . . . . . . Used . | . . . . . . . Hacking Detections 4 | . 2 . . . 1 1 Full Trace Events 2 | . 1 . . . . 1 Feedback Events . | . . . . . . . Feedback Blocked . | . . . . . . . Robot Schematics Acquired . | . . . . . . . Robots Built . | . . . . . . . Authchips . | . . . . . . . Time . | . . . . . . . Total Robot Build Rating . | . . . . . . . Part Schematics Acquired . | . . . . . . . Parts Built . | . . . . . . . Authchips . | . . . . . . . Time . | . . . . . . . Total Part Build Rating . | . . . . . . . Parts Repaired . | . . . . . . . Time . | . . . . . . . Parts Recycled . | . . . . . . . Recycled Matter . | . . . . . . . Retrieved Matter . | . . . . . . . Retrieved Components . | . . . . . . . Parts Scanalyzed . | . . . . . . . Part Schematics Acquired . | . . . . . . . Parts Damaged . | . . . . . . . Bothacking | -11 -10 -10 -10 -9 -8 -8 ------------ Run | Yrd Mat Min Exi Min Mat Sto Used RIF Installer . | . . . . . . . Robots Hacked . | . . . . . . . Non-combat . | . . . . . . . Combat . | . . . . . . . Robot Hacks Applied . | . . . . . . . Relay Couplers Released . | . . . . . . . Fabnet Peak Effective % . | . . . . . . . Robots Rewired . | . . . . . . . Allies Hacked . | . . . . . . . Hacks Repelled . | . . . . . . . Allies | -11 -10 -10 -10 -9 -8 -8 -------- Run | Yrd Mat Min Exi Min Mat Sto Total Allies 2 | . . . . . . 2 Largest Group 2 | . . . . . . 2 Highest-Rated Group 62 | . . . . . . 62 Highest-Rated Ally 31 | . . . . . . 31 Total Orders . | . . . . . . . Ally Attacks 9 | . . . . . . 9 Total Damage 125 | . . . . . . 125 Kills . | . . . . . . . Allies Corrupted . | . . . . . . . Allies Melted 1 | . . . . . . 1 Intel | -11 -10 -10 -10 -9 -8 -8 ------- Run | Yrd Mat Min Exi Min Mat Sto Robot Analysis Total . | . . . . . . . Derelict Logs Recovered 2 | . . 1 . 1 . . Drone Launches 8 | . . . . . . 8 Drone Recoveries 3 | . . . . . . 3 Exploration | -11 -10 -10 -10 -9 -8 -8 ------------- Run | Yrd Mat Min Exi Min Mat Sto Turns Passed 1609 | 69 465 216 271 180 213 195 Spaces Moved 2458 | 45 347 482 729 310 245 300 Core 42 | 10 . . . . 13 19 Treads . | . . . . . . . Legs 297 | 35 262 . . . . . Wheels . | . . . . . . . Hover . | . . . . . . . Flight 2119 | . 85 482 729 310 232 281 Fastest Speed 29 | 50 117 37 37 37 34 29 Average Speed 50 | 131 119 37 37 37 35 35 Slowest Speed 300 | 250 280 37 37 37 50 300 Overloaded Moves . | . . . . . . . Propulsion Burnouts . | . . . . . . . Robots Hopped 36 | . . 4 . 8 . 24 Cave-ins Triggered . | . . . . . . . Time Travels 1 | . . . 1 . . . Exploration Rate (%) 48 | 4 49 59 91 58 18 58 Regions Visited 6 Branch Regions 4 Pre-discovered Areas 2 | . . 1 . . . 1 Known Exits Taken . | . . . . . . . Unknown Exits Taken 6 | 1 1 1 1 1 1 . Scrap Searched 2 | . . 1 . 1 . . Spaces Dug . | . . . . . . . Terrain Destroyed 27 | . . . . . . 27 Melee . | . . . . . . . Projectile . | . . . . . . . AOE 27 | . . . . . . 27 Terrain Rammed . | . . . . . . . Walls Destroyed . | . . . . . . . Machines Disabled . | . . . . . . . Actions | -11 -10 -10 -10 -9 -8 -8 --------- Run | Yrd Mat Min Exi Min Mat Sto Total 2732 | 52 372 503 729 366 352 358 Wait 210 | . . . . 65 88 57 Move 2389 | 44 346 473 728 295 244 259 Hop 27 | . . 4 . 6 . 17 Pick Up 11 | 2 6 2 . . 1 . Fast Attach 23 | 6 2 3 1 . . 11 Attach 9 | . . 2 . . 4 3 Detach 4 | . . 1 . . 3 . Swap 2 | . . 2 . . . . Drop 14 | . 4 4 . . . 6 Fire 43 | . 14 12 . . 12 5 Melee . | . . . . . . . Ram . | . . . . . . . Kick . | . . . . . . . Crush . | . . . . . . . Escape Stasis . | . . . . . . . Rewire . | . . . . . . . Trap . | . . . . . . . Miscellaneous . | . . . . . . . Route ------- -11/Scrapyard -10/Materials (discovered 2 exits: [*Mat] / [*Min]) -10/Mines (discovered 2 exits: [*Mat] / *Exi) -10/Exiles (discovered 2 exits: [*Min x2]) -9/Mines -8/Materials -8/Storage History --------- Turn | Location | Event 9 | -11/Scrapyard | Discovered new exit (range 16) 70 | -11/Scrapyard | Entered Materials 233 | -10/Materials | Discovered new exit (range 12) 318 | -10/Materials | Build established: Mutant 339 | -10/Materials | Discovered new exit (range 16) 535 | -10/Materials | Entered Mines 551 | -10/Mines | Assembled infested the area 595 | -10/Mines | Learned location of Storage (-8) 603 | -10/Mines | Lost 3 parts (2n1w) 633 | -10/Mines | Received a Rocket Launcher from a helpful Derelict 682 | -10/Mines | Discovered new exit (range 6) 750 | -10/Mines | Deemed a non-threat by the Exiles lab entrance 750 | -10/Mines | Discovered new exit (range 5) 751 | -10/Mines | Entered Exiles 757 | -10/Exiles | Discovered new exit (range 15) 761 | -10/Exiles | Met 8R-AWN 767 | -10/Exiles | Met EX-HEX 787 | -10/Exiles | Met EX-DEC 799 | -10/Exiles | Visited The Gauntlet 862 | -10/Exiles | Discovered new exit (range 10) 904 | -10/Exiles | Met EX-BIN 908 | -10/Exiles | Aligned with FarCom system 909 | -10/Exiles | Given EX-Vault access code 920 | -10/Exiles | Opened EX-Vault 922 | -10/Exiles | Found Prototype Device 922 | -10/Exiles | Identified Chronowheel 922 | -10/Exiles | Activated Chronowheel 922 | -10/Exiles | Spacetime reconverged on an earlier point 924 | -10/Exiles | Found Prototype Device 924 | -10/Exiles | Identified PSU Rigger 934 | -10/Exiles | Warned to stay clear of 0b10 Research branches 983 | -10/Exiles | Build established: Scavenger-Mutant 1022 | -10/Exiles | Left Exiles lab with PSU Rigger 1022 | -10/Exiles | Entered Mines 1038 | -9/Mines | Learned Materials interactive machine intel 1193 | -9/Mines | Discovered new exit (range 15) 1202 | -9/Mines | Entered Materials 1202 | -8/Materials | Evolved 4 slots: Propulsion x2, Utility x2 1203 | -8/Materials | Loaded intel: 18 interactive machine locations 1333 | -8/Materials | Discovered new exit (range 16) 1415 | -8/Materials | Entered Storage 1419 | -8/Storage | Met a pair of Derelict thieves 1440 | -8/Storage | Lost 6 parts (1p3n2w) 1550 | -8/Storage | Core integrity fell below 50% 1552 | -8/Storage | Lost 5 allies 1554 | -8/Storage | Learned location of Armory (-3) 1599 | -8/Storage | Core integrity fell below 20% 1610 | -8/Storage | Destroyed by Y-45 Defender with Heavy Assault Rifle Last Messages --------------- don't stick around. I stayed behind to warn any stragglers, and you certainly look like you're straggling." J2-K9N(g): "We'll attack Armory later, meet at one of the rendevous points." World map updated: -3/Armory. J2-K9N(g) slips back into hiding. Penetrated by Slug. Weight Redist. System severed. Imp. VTOL Module destroyed. G-47 Trooper destroyed. K-01 Serf collects debris. O-16 Technician sends out distress signal. Critical hit (Burn: +37). ALERT: Hostiles spotted, dispatching reinforcements to Terminal S012. Critical hit (Burn: +37). [Achievement: Hunted] S-10 Pest destroyed. ECM Suite destroyed. Map ----- +----------------------------------------------------+ | ???????# ! / #????????????????# " | | ???????# """ # #????????????????# | | ????#### "Y" # ################## | | ????#""" # | | ????#"G + | | ????#""" """ # | | ????#### """ # ###########+##### | | ???????# """ # #?# [ # | | ???????# + #?# # | | ???????###"T"###### #?# """ """ """ # | | ?????????####?????# ## """ """ """ # | | ??????????????????# ### """ """ """ # | | ??????????????????#i#?# # | | ??????????#########Y#?#########"Y"##### | | ??????????# # #"""#???? | | ??Y???????# # """ """ #####???? | | ??????????# # """ """ #???????? | | ??????????# # """ """ #???????? | | ??????????# # #???????? | | ??????????# g # #???????? | | ??????+?? + # #???????? | | ??????# # # #???????? | | ??????# #####/#########+############# | | ??????# algY kg s a | | ??????+ bg s s | | ??????# k @ hgs s sg | | ??????# k###############+############# | | ??????# ???????????# #????????? | | ??????# ????????????# #????????? | | ????????????????????# #????????? | | ????????????????????# """" #????????? | | ????????????????????# """" #????????? | | ????????g???????????# """" #????????? | | ?????????????????Y??# """" #????????? | | ????????????????????# #????????? | | ???????g????????????# #????????? | | ????????g???????????####Y#####????????? | | ??????????????????????????????????????? | | ??????????????????????????????????????? | | ??????????????????????????????????????? | | ??????????????????????????????????????? | | ??????????????????????????????????????? | | ??????????????????????????????????????? | | ??????????????????????????????????????? | | ??????????????????????????????????????? | | ??????????????????????????????????????? | | ??????????????????????????????????????? | | ??????????????????????????????????????? | | ??????????????????????????????????????? | | ??????????????????????????????????????? | +----------------------------------------------------+ Best States ------------- Heat Dissipation 31 Energy Generation 14 Energy Capacity 250 Matter Stores 300 Matter Capacity 300 Sight Range 16 Terrain Scan Density 10 ECM Strength 1 Additional Mass Support 6 Evasion (%) 63 Item Schematics ----------------- None Robot Schematics ------------------ None Fabricated ------------ Nothing Alien Tech Used ----------------- None Achievements -------------- Hunted I Survived The Infestation Challenges ------------ None Game ------ Seed ChipAssemblyPurifier Manual? 0 Play Time 00:33:52 Cumulative 8.9 hours Start 2024.04.24 @ 05:18:58 End 2024.04.24 @ 21:41:58 Sessions 2 Manual Loads 0 Difficulty Rogue Special Mode None Game No. 8 Rogue 8 Adventurer 0 Explorer 0 Win Type - Total 0 Types 0/0/0/0/0/0/0/0/0 Lore% 14 Gallery% 15 Achievement% 17 Wizard Run 0 Options --------- Layout 1 ASCII 0 Keyboard 0 Movement Arrows Keybinds 0 Fullscreen 1 Font 24/Smallcaps Map View 50x35 Zoom Use 0% Tactical HUD 0 Map Filters NONE Filters NONE Steam 0 RUN: 5c466667-dc03-443d-9c63-105a1270bde2